[Event "CZE-ch Open 2019"]
[Site "Ostrava"]
[Date "2019.04.30"]
[Round "4.19"]
[White "Liska, Jiri"]
[Black "Svanda, Ondrej"]
[Result "0-1"]
[ECO "A05"]
[WhiteElo "2236"]
[BlackElo "2309"]
[Annotator "NA"]
[PlyCount "88"]
[EventDate "2019.04.27"]
[EventType "swiss"]
[EventCountry "CZE"]
[SourceTitle "playchess.com"]
[Source "ChessBase"]
[SourceQuality "1"]
[TimeControl "40/5400+30:1800+30"]

1. Nf3 {[%emt 0:00:00]} Nf6 {[%emt 0:00:00]} 2. c4 {[%emt 0:00:00]} g6 {[%emt 0:00:00]} 3. b3 {[%emt 0:01:11]} Bg7 {[%emt 0:00:07]} 4. Bb2 {[%emt 0:00:06]} O-O {[%emt 0:00:17]} 5. g3 {[%emt 0:00:40]} c6 {[%emt 0:00:50]} 6. Bg2 {[%emt 0:00:16]} d5 {[%emt 0:00:05]} 7. O-O {[%emt 0:00:38]} Bf5 {[%emt 0:00:58]} 8. d3 {[%emt 0:02:30]} Re8 9. Nbd2 a5 {[%emt 0:19:49]} 10. Qc2 {[%emt 0:04:37]} Na6 {[%emt 0:00:59]} 11. a3 {[%emt 0:00:40]} Rc8 {[%emt 0:05:48]} 12. h3 {[%emt 0:08:24]} Qb6 {[%emt 0:05:38]} 13. e4 {[%emt 0:07:35]} dxe4 {[%emt 0:01:54]} 14. Nxe4 {[%emt 0:09:23]} Nxe4 {[%emt 0:01:11]} 15. Bxg7 {[%emt 0:14:36]} Nec5 {[%emt 0:02:21]} 16. Bd4 {[%emt 0:01:17]} Qxb3 {[%emt 0:00:50]} 17. Qd2 {[%emt 0:01:52]} f6 {[%emt 0:06:32]} 18. Rfd1 {[%emt 0:17:16]} Bxd3 {[%emt 0:15:18]} 19. Qxa5 {[%emt 0:06:51]} b6 {[%emt 0:01:39]} 20. Qe1 {[%emt 0:00:21]} e5 {[%emt 0:07:06]} 21. Be3 {[%emt 0:00:58]} Red8 {[%emt 0:05:08]} 22. Nd2 {[%emt 0:06:38]} Qa4 {[%emt 0:02:17]} 23. f4 {[%emt 0:01:11]} Bc2 {[%emt 0:02:01]} 24. Bxc5 {[%emt 0:08:58]} Nxc5 {[%emt 0:01:13]} 25. Ne4 {[%emt 0:00:23]} Rxd1 {[%emt 0:06:51]} 26. Nxf6+ {[%emt 0:00:17]} Kf7 {[%emt 0:00:24]} 27. Rxd1 {[%emt 0:00:14]} Bxd1 {[%emt 0:00:04]} 28. Qxe5 {[%emt 0:01:42]} Qxc4 {[%emt 0:11:02]} 29. Nd5 {[%emt 0:03:56]} Nd7 {[%emt 0:01:15]} 30. Qe7+ {[%emt 0:00:28]} Kg8 {[%emt 0:00:04]} 31. Qxd7 {[%emt 0:00:19]} Qc5+ {[%emt 0:00:37]} 32. Kh2 {[%emt 0:00:18]} cxd5 {[%emt 0:00:12]} 33. Qe6+ {[%emt 0:00:41]} Kf8 {[%emt 0:00:46]} 34. Bxd5 {[%emt 0:01:02]} Qf2+ {[%emt 0:00:05]} 35. Bg2 {[%emt 0:00:05]} Qc5 {[%emt 0:01:18]} 36. Bd5 {[%emt 0:00:42]} Qc2+ {[%emt 0:00:55]} 37. Kh1 {[%emt 0:00:38]} Qf5 {[%emt 0:01:01]} 38. Qg8+ {[%emt 0:01:41]} Ke7 {[%emt 0:00:05]} 39. Qg7+ {[%emt 0:00:16]} Kd6 {[%emt 0:00:28]} 40. Bg2 {[%emt 0:00:17]} Bb3 {[%emt 0:01:27]} 41. Qd4+ {[%emt 0:30:40]} Bd5 {[%emt 0:03:41]} 42. g4 {[%emt 0:00:00]} Qe6 {[%emt 0:00:52]} 43. Qxb6+ {[%emt 0:00:00]} Ke7 {[%emt 0:02:59]} 44. Qa7+ {[%emt 0:00:00]} Kf8 {[%emt 0:00:48]} 0-1

[Event "CZE-ch Open 2019"]
[Site "Ostrava"]
[Date "2019.04.30"]
[Round "4.20"]
[White "Jun, Rudolf Jr."]
[Black "Worek, Joanna"]
[Result "0-1"]
[ECO "A07"]
[WhiteElo "2138"]
[BlackElo "2299"]
[Annotator "NA"]
[PlyCount "100"]
[EventDate "2019.04.27"]
[EventType "swiss"]
[EventCountry "CZE"]
[SourceTitle "playchess.com"]
[Source "ChessBase"]
[SourceQuality "1"]
[TimeControl "40/5400+30:1800+30"]

1. Nf3 {[%emt 0:00:00]} d5 {[%emt 0:00:00]} 2. g3 {[%emt 0:01:33]} Nf6 {[%emt 0:00:05]} 3. Bg2 {[%emt 0:00:20]} c6 {[%emt 0:01:53]} 4. O-O {[%emt 0:00:31]} Bg4 {[%emt 0:00:31]} 5. d4 Nbd7 6. Ne5 {[%emt 0:12:05]} Bf5 {[%emt 0:07:22]} 7. Re1 {[%emt 0:05:47]} e6 {[%emt 0:04:11]} 8. c4 {[%emt 0:07:46]} Be7 {[%emt 0:13:04]} 9. Nc3 {[%emt 0:02:25]} O-O {[%emt 0:00:15]} 10. a3 {[%emt 0:16:49]} h6 {[%emt 0:11:37]} 11. b3 {[%emt 0:03:42]} Qc7 {[%emt 0:10:10]} 12. Bf4 {[%emt 0:08:08]} Nxe5 {[%emt 0:02:18]} 13. Bxe5 {[%emt 0:00:43]} Qd7 {[%emt 0:01:36]} 14. e4 {[%emt 0:01:16]} dxe4 {[%emt 0:00:15]} 15. Nxe4 {[%emt 0:00:45]} Nxe4 {[%emt 0:00:09]} 16. Bxe4 {[%emt 0:00:17]} Bxe4 {[%emt 0:01:05]} 17. Rxe4 {[%emt 0:00:06]} Rad8 {[%emt 0:01:30]} 18. Re1 {[%emt 0:02:04]} Rfe8 {[%emt 0:08:29]} 19. Qg4 {[%emt 0:06:54]} Bf8 {[%emt 0:00:48]} 20. Rad1 {[%emt 0:02:30]} Kh8 {[%emt 0:13:26]} 21. a4 {[%emt 0:03:16]} f6 {[%emt 0:00:19]} 22. Bf4 {[%emt 0:00:06]} Qf7 {[%emt 0:07:26]} 23. Qf3 {[%emt 0:03:22]} Qg6 {[%emt 0:05:22]} 24. Qe4 {[%emt 0:03:52]} Qxe4 {[%emt 0:00:02]} 25. Rxe4 {[%emt 0:00:09]} g5 {[%emt 0:00:18]} 26. Bc1 {[%emt 0:00:59]} f5 {[%emt 0:00:42]} 27. Ree1 {[%emt 0:00:16]} Bg7 {[%emt 0:00:50]} 28. Be3 {[%emt 0:01:43]} Rd7 {[%emt 0:02:34]} 29. d5 {[%emt 0:04:06]} exd5 {[%emt 0:00:12]} 30. cxd5 {[%emt 0:00:19]} cxd5 {[%emt 0:00:49]} 31. Bxa7 {[%emt 0:00:09]} Rxe1+ {[%emt 0:00:59]} 32. Rxe1 {[%emt 0:00:05]} d4 {[%emt 0:01:49]} 33. Rd1 {[%emt 0:00:07]} Kg8 {[%emt 0:00:36]} 34. Kf1 {[%emt 0:00:45]} d3 {[%emt 0:00:49]} 35. f3 {[%emt 0:01:32]} Be5 {[%emt 0:01:13]} 36. Kf2 {[%emt 0:02:51]} f4 {[%emt 0:01:13]} 37. a5 {[%emt 0:01:10]} Kf7 {[%emt 0:01:01]} 38. Bc5 {[%emt 0:02:25]} Kf6 {[%emt 0:00:29]} 39. Bb4 {[%emt 0:02:44]} h5 {[%emt 0:00:25]} 40. Bd2 {[%emt 0:01:08]} Kf5 {[%emt 0:00:51]} 41. b4 {[%emt 0:34:12]} Bd4+ {[%emt 0:32:27]} 42. Kf1 {[%emt 0:00:00]} Be3 {[%emt 0:00:00]} 43. Bc3 {[%emt 0:00:00]} g4 {[%emt 0:00:00]} 44. fxg4+ hxg4 {[%emt 0:00:00]} 45. gxf4 {[%emt 0:00:00]} Kxf4 {[%emt 0:00:00]} 46. Kg2 {[%emt 0:00:00]} d2 {[%emt 0:00:00]} 47. b5 {[%emt 0:00:00]} Rc7 {[%emt 0:00:00]} 48. Rxd2 {[%emt 0:00:00]} Rxc3 {[%emt 0:00:00]} 49. Ra2 {[%emt 0:00:00]} Rc1 {[%emt 0:00:00]} 50. Ra4+ {[%emt 0:00:00]} Kg5 {[%emt 0:00:00]} 0-1

[Event "CZE-ch Open 2019"]
[Site "Ostrava"]
[Date "2019.04.30"]
[Round "4.21"]
[White "Valencik, Jozef"]
[Black "Riha, Vojtech"]
[Result "0-1"]
[ECO "A45"]
[WhiteElo "2057"]
[BlackElo "2288"]
[Annotator "NA"]
[PlyCount "66"]
[EventDate "2019.04.27"]
[EventType "swiss"]
[EventCountry "CZE"]
[SourceTitle "playchess.com"]
[Source "ChessBase"]
[SourceQuality "1"]
[TimeControl "40/5400+30:1800+30"]

1. d4 {[%emt 0:00:00]} Nf6 {[%emt 0:00:00]} 2. Bf4 {[%emt 0:00:00]} g6 {[%emt 0:00:36]} 3. Nc3 {[%emt 0:00:00]} d5 {[%emt 0:01:44]} 4. e3 {[%emt 0:00:11]} Bg7 {[%emt 0:01:02]} 5. h4 {[%emt 0:00:06]} h5 {[%emt 0:04:19]} 6. Nb5 {[%emt 0:02:46]} Na6 {[%emt 0:06:13]} 7. Nf3 Bf5 8. Ne5 {[%emt 0:07:59]} Ng4 {[%emt 0:08:14]} 9. Nxg4 $11 {[%emt 0:06:42]} hxg4 {[%emt 0:00:25]} 10. Qd2 {[%emt 0:09:49]} c6 {[%emt 0:04:08]} 11. Nc3 {[%emt 0:05:18]} Nc7 {[%emt 0:11:31]} 12. O-O-O {[%emt 0:06:26]} Ne6 {[%emt 0:09:25]} 13. Bg3 {[%emt 0:04:30]} c5 {[%emt 0:18:55]} 14. Be5 {[%emt 0:15:53]} Bxe5 {[%emt 0:02:32]} 15. dxe5 {[%emt 0:00:08]} d4 {[%emt 0:01:02]} 16. e4 {[%emt 0:04:35]} dxc3 {[%emt 0:03:11]} 17. Qxc3 {[%emt 0:02:00]} Qb6 {[%emt 0:01:43]} 18. exf5 {[%emt 0:00:30]} gxf5 {[%emt 0:00:05]} 19. Qd3 {[%emt 0:02:07]} Rd8 {[%emt 0:05:25]} 20. Qb5+ {[%emt 0:00:42]} Kf8 {[%emt 0:01:39]} 21. Rxd8+ {[%emt 0:08:30]} Qxd8 {[%emt 0:00:08]} 22. Bc4 {[%emt 0:05:52]} Qd4 {[%emt 0:01:58]} 23. Bxe6 {[%emt 0:07:48]} fxe6 {[%emt 0:00:18]} 24. Qxb7 {[%emt 0:06:15]} Qxe5 {[%emt 0:01:04]} 25. g3 {[%emt 0:02:06]} Kf7 {[%emt 0:01:15]} 26. Qb3 {[%emt 0:01:25]} Rb8 {[%emt 0:01:20]} 27. Qc3 {[%emt 0:00:06]} Qd5 {[%emt 0:01:14]} 28. Re1 {[%emt 0:00:47]} Qxa2 {[%emt 0:00:54]} 29. b3 {[%emt 0:01:12]} Qa3+ {[%emt 0:02:50]} 30. Qb2 {[%emt 0:00:42]} Qb4 {[%emt 0:01:52]} 31. Qe5 {[%emt 0:00:05]} Rb6 {[%emt 0:00:38]} 32. Re3 {[%emt 0:00:54]} Rd6 {[%emt 0:01:21]} 33. Qc3 {[%emt 0:00:34]} Qa3+ {[%emt 0:00:08]} 0-1

[Event "CZE-ch Open 2019"]
[Site "Ostrava"]
[Date "2019.04.30"]
[Round "4.22"]
[White "Vokac, Marek"]
[Black "Zeman, Matyas"]
[Result "0-1"]
[ECO "A40"]
[WhiteElo "2343"]
[BlackElo "2244"]
[Annotator "NA"]
[PlyCount "75"]
[EventDate "2019.04.27"]
[EventType "swiss"]
[EventCountry "CZE"]
[SourceTitle "playchess.com"]
[Source "ChessBase"]
[SourceQuality "1"]
[TimeControl "40/5400+30:1800+30"]

1. d4 {[%emt 0:00:13]} e6 {[%emt 0:00:00]} 2. Nf3 {[%emt 0:00:51]} d5 {[%emt 0:00:03]} 3. Bg5 {[%emt 0:01:16]} Nf6 {[%emt 0:00:56]} 4. e3 {[%emt 0:00:22]} Be7 {[%emt 0:00:17]} 5. Nbd2 {[%emt 0:01:48]} Nbd7 {[%emt 0:02:43]} 6. Bd3 {[%emt 0:00:31]} b6 {[%emt 0:00:12]} 7. O-O Bb7 {[%emt 0:00:30]} 8. Ne5 Nxe5 {[%emt 0:00:30]} 9. dxe5 Nd7 10. Bf4 {[%emt 0:11:05]} Nc5 {[%emt 0:09:07]} 11. Bb5+ {[%emt 0:02:22]} c6 {[%emt 0:00:49]} 12. Be2 {[%emt 0:00:03]} O-O {[%emt 0:00:14]} 13. c3 {[%emt 0:03:03]} a5 {[%emt 0:00:30]} 14. Qc2 {[%emt 0:05:20]} Ba6 {[%emt 0:01:07]} 15. Bxa6 $11 {[%emt 0:00:11]} Rxa6 {[%emt 0:00:31]} 16. Rad1 {[%emt 0:03:12]} Qc7 {[%emt 0:01:43]} 17. Bg3 {[%emt 0:00:08]} b5 {[%emt 0:07:20]} 18. f4 {[%emt 0:09:53]} g6 {[%emt 0:00:18]} 19. b4 {[%emt 0:11:46]} axb4 {[%emt 0:06:08]} 20. cxb4 {[%emt 0:02:22]} Nd7 {[%emt 0:00:11]} 21. e4 {[%emt 0:00:07]} Bxb4 {[%emt 0:01:02]} 22. exd5 {[%emt 0:00:33]} Bc5+ {[%emt 0:00:03]} 23. Kh1 {[%emt 0:05:18]} cxd5 {[%emt 0:00:11]} 24. Nb3 {[%emt 0:11:29]} Qa7 {[%emt 0:11:12]} 25. Bf2 {[%emt 0:07:05]} Bxf2 {[%emt 0:01:19]} 26. Rxf2 {[%emt 0:00:03]} Ra8 {[%emt 0:03:26]} 27. Rdd2 {[%emt 0:00:04]} Ra4 {[%emt 0:00:29]} 28. h3 {[%emt 0:10:08]} Rc4 {[%emt 0:02:11]} 29. Qd1 {[%emt 0:00:02]} Rac8 {[%emt 0:03:51]} 30. Kh2 {[%emt 0:00:13]} Qa4 {[%emt 0:03:02]} 31. Qf1 {[%emt 0:06:49]} Nc5 {[%emt 0:06:36]} 32. Nxc5 {[%emt 0:03:07]} R8xc5 {[%emt 0:01:36]} 33. Rf3 {[%emt 0:02:34]} Rc2 {[%emt 0:00:09]} 34. Rxc2 Rxc2 35. a3 {[%emt 0:04:04]} Qe4 {[%emt 0:09:57]} 36. Rf2 {[%emt 0:00:57]} Rxf2 {[%emt 0:00:51]} 37. Qxf2 {[%emt 0:00:01]} d4 {[%emt 0:00:09]} 38. g3 0-1

[Event "CZE-ch Open 2019"]
[Site "Ostrava"]
[Date "2019.04.30"]
[Round "4.23"]
[White "Kana, Pavel"]
[Black "Vesselovsky, Serguei"]
[Result "1/2-1/2"]
[ECO "B77"]
[WhiteElo "2013"]
[BlackElo "2335"]
[Annotator "NA"]
[PlyCount "73"]
[EventDate "2019.04.27"]
[EventType "swiss"]
[EventCountry "CZE"]
[SourceTitle "playchess.com"]
[Source "ChessBase"]
[SourceQuality "1"]
[TimeControl "40/5400+30:1800+30"]

1. e4 {[%emt 0:05:56]} c5 {[%emt 0:00:00]} 2. Nf3 {[%emt 0:00:04]} d6 {[%emt 0:00:00]} 3. d4 {[%emt 0:00:13]} cxd4 {[%emt 0:00:00]} 4. Nxd4 {[%emt 0:00:06]} Nf6 {[%emt 0:00:02]} 5. Nc3 {[%emt 0:00:05]} g6 {[%emt 0:00:21]} 6. Be3 {[%emt 0:01:14]} Bg7 {[%emt 0:00:25]} 7. f3 {[%emt 0:00:39]} Nc6 {[%emt 0:01:50]} 8. Bc4 {[%emt 0:02:30]} O-O 9. Qd2 Nd7 {[%emt 0:04:38]} 10. h4 {[%emt 0:08:15]} Nb6 {[%emt 0:00:58]} 11. Bb3 {[%emt 0:01:45]} Na5 {[%emt 0:00:15]} 12. Qd3 {[%emt 0:08:53]} Nxb3 $16 {[%emt 0:02:13]} 13. axb3 {[%emt 0:02:13]} d5 {[%emt 0:00:32]} 14. Ndb5 {[%emt 0:08:03]} a6 {[%emt 0:01:34]} 15. Bxb6 {[%emt 0:06:32]} Qxb6 {[%emt 0:00:09]} 16. Nxd5 {[%emt 0:01:33]} Qd8 {[%emt 0:00:18]} 17. Nbc3 {[%emt 0:08:40]} e6 {[%emt 0:03:34]} 18. Ne3 {[%emt 0:08:48]} Qc7 {[%emt 0:16:22]} 19. O-O-O {[%emt 0:01:22]} b5 {[%emt 0:03:45]} 20. Kb1 {[%emt 0:04:10]} Bb7 {[%emt 0:03:34]} 21. h5 {[%emt 0:04:49]} Rad8 {[%emt 0:25:03]} 22. Qe2 {[%emt 0:00:21]} Rxd1+ {[%emt 0:08:05]} 23. Rxd1 {[%emt 0:05:57]} Rd8 {[%emt 0:03:48]} 24. hxg6 {[%emt 0:01:56]} hxg6 {[%emt 0:00:09]} 25. Rd3 {[%emt 0:01:36]} Rd4 {[%emt 0:04:06]} 26. Rxd4 {[%emt 0:03:16]} Bxd4 {[%emt 0:00:02]} 27. Qd3 {[%emt 0:00:56]} Qc5 {[%emt 0:07:53]} 28. Nf1 {[%emt 0:05:18]} f5 {[%emt 0:01:31]} 29. Ne2 {[%emt 0:02:39]} Bf6 {[%emt 0:01:47]} 30. Nc3 {[%emt 0:03:35]} Bc6 {[%emt 0:02:55]} 31. Nd2 {[%emt 0:01:25]} Kf7 {[%emt 0:02:44]} 32. Ka2 {[%emt 0:00:46]} Ke7 {[%emt 0:03:35]} 33. Kb1 {[%emt 0:00:39]} Qg1+ {[%emt 0:00:33]} 34. Qf1 {[%emt 0:00:42]} Qxf1+ {[%emt 0:02:42]} 35. Nxf1 {[%emt 0:00:01]} Bxc3 {[%emt 0:01:12]} 36. bxc3 {[%emt 0:00:05]} fxe4 {[%emt 0:00:04]} 37. f4 {[%emt 0:00:55]} 1/2-1/2

[Event "CZE-ch Open 2019"]
[Site "Ostrava"]
[Date "2019.04.30"]
[Round "4.24"]
[White "Obsivac, Josef"]
[Black "Ockay, Tomas"]
[Result "0-1"]
[ECO "E18"]
[WhiteElo "2285"]
[BlackElo "2131"]
[Annotator "NA"]
[PlyCount "76"]
[EventDate "2019.04.27"]
[EventType "swiss"]
[EventCountry "CZE"]
[SourceTitle "playchess.com"]
[Source "ChessBase"]
[SourceQuality "1"]
[TimeControl "40/5400+30:1800+30"]

1. d4 {[%emt 0:00:00]} Nf6 {[%emt 0:00:38]} 2. Nf3 {[%emt 0:00:00]} e6 {[%emt 0:00:19]} 3. g3 {[%emt 0:00:43]} b6 {[%emt 0:00:32]} 4. Bg2 {[%emt 0:00:18]} Bb7 {[%emt 0:00:04]} 5. O-O {[%emt 0:00:20]} Be7 {[%emt 0:00:10]} 6. c4 {[%emt 0:00:18]} O-O {[%emt 0:00:25]} 7. Nc3 {[%emt 0:00:19]} Na6 {[%emt 0:00:30]} 8. d5 {[%emt 0:00:30]} Nc5 9. Nd4 {[%emt 0:09:39]} e5 {[%emt 0:14:47]} 10. Nf5 {[%emt 0:00:17]} d6 {[%emt 0:00:36]} 11. b4 {[%emt 0:01:15]} Ncd7 {[%emt 0:00:31]} 12. Bb2 {[%emt 0:03:21]} Re8 {[%emt 0:03:29]} 13. Qd2 $14 {[%emt 0:03:49]} Nf8 {[%emt 0:04:37]} 14. Rfd1 {[%emt 0:04:28]} Bc8 {[%emt 0:03:52]} 15. Ne3 {[%emt 0:00:36]} Ng4 {[%emt 0:01:44]} 16. Nc2 {[%emt 0:09:48]} Bg5 {[%emt 0:04:54]} 17. e3 {[%emt 0:00:39]} Bf5 {[%emt 0:07:42]} 18. Ne4 {[%emt 0:03:44]} Bh6 {[%emt 0:04:15]} 19. a4 {[%emt 0:05:09]} Nd7 {[%emt 0:01:35]} 20. a5 {[%emt 0:06:00]} Ndf6 {[%emt 0:03:51]} 21. Nxf6+ {[%emt 0:01:36]} Qxf6 {[%emt 0:01:23]} 22. h3 {[%emt 0:08:33]} Qg6 {[%emt 0:00:06]} 23. Rdc1 {[%emt 0:12:03]} Nf6 {[%emt 0:04:23]} 24. Ne1 {[%emt 0:01:03]} Be4 {[%emt 0:00:46]} 25. Nf3 {[%emt 0:01:25]} Bg5 {[%emt 0:20:22]} 26. Qd1 {[%emt 0:03:16]} h5 {[%emt 0:02:40]} 27. h4 {[%emt 0:01:57]} Bh6 {[%emt 0:00:14]} 28. Nd2 {[%emt 0:03:05]} Bxg2 {[%emt 0:01:57]} 29. Kxg2 {[%emt 0:00:02]} Ng4 {[%emt 0:00:16]} 30. Qe2 {[%emt 0:01:50]} f5 {[%emt 0:00:34]} 31. Rc3 {[%emt 0:05:47]} f4 {[%emt 0:03:39]} 32. axb6 {[%emt 0:09:20]} cxb6 {[%emt 0:01:31]} 33. Rf1 {[%emt 0:00:46]} fxe3 {[%emt 0:00:41]} 34. fxe3 {[%emt 0:00:51]} Rf8 {[%emt 0:00:25]} 35. Nf3 {[%emt 0:01:48]} e4 {[%emt 0:01:28]} 36. Nh2 {[%emt 0:01:48]} Rxf1 {[%emt 0:00:55]} 37. Nxf1 {[%emt 0:00:23]} Rf8 {[%emt 0:00:12]} 38. Rc2 {[%emt 0:00:18]} Rxf1 {[%emt 0:07:16]} 0-1

[Event "CZE-ch Open 2019"]
[Site "Ostrava"]
[Date "2019.04.30"]
[Round "4.25"]
[White "Jurek, Josef"]
[Black "Otruba, Marek"]
[Result "0-1"]
[ECO "A05"]
[WhiteElo "2269"]
[BlackElo "2103"]
[Annotator "NA"]
[PlyCount "126"]
[EventDate "2019.04.27"]
[EventType "swiss"]
[EventCountry "CZE"]
[SourceTitle "playchess.com"]
[Source "ChessBase"]
[SourceQuality "1"]
[TimeControl "40/5400+30:1800+30"]

1. Nf3 {[%emt 0:00:00]} Nf6 {[%emt 0:00:00]} 2. c4 {[%emt 0:00:00]} e6 {[%emt 0:00:00]} 3. g3 {[%emt 0:00:23]} d5 {[%emt 0:00:00]} 4. b3 {[%emt 0:00:27]} Be7 {[%emt 0:00:44]} 5. Bg2 {[%emt 0:00:18]} O-O {[%emt 0:00:08]} 6. O-O {[%emt 0:00:21]} c5 {[%emt 0:00:05]} 7. Bb2 {[%emt 0:00:49]} Nc6 {[%emt 0:00:23]} 8. e3 {[%emt 0:00:35]} d4 {[%emt 0:01:06]} 9. exd4 {[%emt 0:00:34]} cxd4 {[%emt 0:00:05]} 10. Re1 {[%emt 0:01:04]} Ne8 {[%emt 0:01:34]} 11. a3 {[%emt 0:01:57]} a5 {[%emt 0:00:11]} 12. Ne5 {[%emt 0:01:52]} Nxe5 {[%emt 0:05:36]} 13. Rxe5 {[%emt 0:00:17]} f6 {[%emt 0:03:27]} 14. Re1 {[%emt 0:00:31]} e5 {[%emt 0:09:16]} 15. d3 {[%emt 0:02:55]} Rb8 {[%emt 0:10:06]} 16. Nd2 $11 {[%emt 0:06:02]} Bd7 {[%emt 0:06:08]} 17. Qe2 {[%emt 0:06:37]} Bd6 {[%emt 0:08:40]} 18. Ne4 {[%emt 0:04:23]} Qb6 {[%emt 0:03:49]} 19. Nxd6 {[%emt 0:03:37]} Nxd6 {[%emt 0:00:21]} 20. b4 {[%emt 0:01:38]} Qc7 {[%emt 0:04:30]} 21. c5 {[%emt 0:20:44]} Nb5 {[%emt 0:01:05]} 22. Qc2 {[%emt 0:06:19]} axb4 {[%emt 0:02:57]} 23. Qc4+ {[%emt 0:02:56]} Kh8 {[%emt 0:00:09]} 24. Qxb4 {[%emt 0:00:16]} Bc6 {[%emt 0:03:56]} 25. Be4 {[%emt 0:06:02]} Bxe4 {[%emt 0:15:04]} 26. Rxe4 {[%emt 0:00:10]} b6 {[%emt 0:01:06]} 27. Rc1 {[%emt 0:08:16]} bxc5 {[%emt 0:02:06]} 28. Rxc5 {[%emt 0:00:22]} Qd7 {[%emt 0:05:27]} 29. Qa4 {[%emt 0:02:31]} Rfc8 {[%emt 0:06:00]} 30. Rxc8+ {[%emt 0:02:25]} Qxc8 {[%emt 0:00:08]} 31. Re1 {[%emt 0:03:54]} Nc3 {[%emt 0:03:08]} 32. Qc2 {[%emt 0:02:01]} Na4 {[%emt 0:03:04]} 33. Qxc8+ {[%emt 0:01:08]} Rxc8 {[%emt 0:00:08]} 34. Bc1 {[%emt 0:01:33]} Kg8 {[%emt 0:02:15]} 35. f4 {[%emt 0:00:21]} Kf7 {[%emt 0:01:26]} 36. fxe5 {[%emt 0:00:52]} fxe5 {[%emt 0:00:06]} 37. Bd2 {[%emt 0:01:22]} Ke6 {[%emt 0:00:45]} 38. Rb1 {[%emt 0:05:26]} Rc2 {[%emt 0:01:04]} 39. Bb4 {[%emt 0:02:02]} Nb2 {[%emt 0:00:41]} 40. Bf8 {[%emt 0:01:19]} g6 {[%emt 0:01:03]} 41. a4 {[%emt 0:06:47]} Nxd3 {[%emt 0:12:28]} 42. a5 {[%emt 0:00:13]} Ra2 {[%emt 0:00:30]} 43. Rb3 {[%emt 0:01:09]} e4 {[%emt 0:03:34]} 44. Ra3 {[%emt 0:02:04]} Rxa3 {[%emt 0:01:15]} 45. Bxa3 {[%emt 0:00:08]} Kd5 {[%emt 0:00:06]} 46. a6 {[%emt 0:01:38]} Kc6 {[%emt 0:00:30]} 47. Kf1 {[%emt 0:02:52]} Kb6 {[%emt 0:00:25]} 48. Be7 {[%emt 0:01:14]} Ne5 {[%emt 0:03:55]} 49. Bc5+ {[%emt 0:05:55]} Kxa6 {[%emt 0:00:05]} 50. Bxd4 {[%emt 0:00:08]} Nf3 {[%emt 0:00:07]} 51. Bc3 {[%emt 0:01:44]} Kb5 {[%emt 0:05:39]} 52. h3 {[%emt 0:04:19]} Kc4 {[%emt 0:00:11]} 53. Ba5 {[%emt 0:00:23]} Kd3 {[%emt 0:00:05]} 54. Kf2 {[%emt 0:03:14]} Nd4 {[%emt 0:01:13]} 55. g4 {[%emt 0:01:40]} e3+ {[%emt 0:00:22]} 56. Kg3 {[%emt 0:00:17]} h6 {[%emt 0:05:37]} 57. Kf4 {[%emt 0:02:22]} e2 {[%emt 0:02:07]} 58. Be1 {[%emt 0:02:49]} Nc2 {[%emt 0:01:01]} 59. Bf2 {[%emt 0:02:16]} e1=Q {[%emt 0:00:23]} 60. Bxe1 {[%emt 0:00:04]} Nxe1 {[%emt 0:00:06]} 61. Ke5 {[%emt 0:00:24]} Nf3+ {[%emt 0:01:08]} 62. Kf6 {[%emt 0:00:39]} g5 {[%emt 0:00:23]} 63. Kg6 {[%emt 0:01:17]} Ke3 {[%emt 0:00:10]} 0-1

[Event "CZE-ch Open 2019"]
[Site "Ostrava"]
[Date "2019.04.30"]
[Round "4.26"]
[White "Babula, Milan"]
[Black "Didi, Jan"]
[Result "1/2-1/2"]
[ECO "B80"]
[WhiteElo "2204"]
[BlackElo "2025"]
[Annotator "NA"]
[PlyCount "67"]
[EventDate "2019.04.27"]
[EventType "swiss"]
[EventCountry "CZE"]
[SourceTitle "playchess.com"]
[Source "ChessBase"]
[SourceQuality "1"]
[TimeControl "40/5400+30:1800+30"]

1. e4 {[%emt 0:00:00]} c5 {[%emt 0:00:10]} 2. Nf3 {[%emt 0:00:00]} e6 {[%emt 0:00:09]} 3. d4 {[%emt 0:00:00]} cxd4 {[%emt 0:00:07]} 4. Nxd4 {[%emt 0:00:00]} Nf6 {[%emt 0:00:48]} 5. Nc3 {[%emt 0:00:03]} d6 {[%emt 0:01:07]} 6. g3 {[%emt 0:03:15]} Be7 {[%emt 0:01:00]} 7. Bg2 {[%emt 0:00:03]} O-O {[%emt 0:00:17]} 8. O-O {[%emt 0:00:04]} Nc6 {[%emt 0:01:19]} 9. b3 {[%emt 0:04:18]} a6 {[%emt 0:01:10]} 10. Bb2 {[%emt 0:00:58]} Qc7 {[%emt 0:05:24]} 11. Nde2 {[%emt 0:01:41]} b5 {[%emt 0:02:44]} 12. a3 {[%emt 0:00:28]} Bb7 {[%emt 0:00:12]} 13. h3 {[%emt 0:00:44]} Rac8 {[%emt 0:03:05]} 14. g4 {[%emt 0:04:00]} b4 {[%emt 0:02:43]} 15. axb4 {[%emt 0:11:45]} Nxb4 {[%emt 0:00:16]} 16. Ng3 {[%emt 0:00:23]} d5 {[%emt 0:08:45]} 17. Rc1 {[%emt 0:28:30]} d4 {[%emt 0:30:45]} 18. Nce2 {[%emt 0:13:56]} e5 {[%emt 0:00:45]} 19. c4 {[%emt 0:04:25]} Rfd8 {[%emt 0:03:17]} 20. Qd2 {[%emt 0:01:20]} Bc5 {[%emt 0:08:01]} 21. Ra1 {[%emt 0:04:42]} Rb8 {[%emt 0:04:49]} 22. Nc1 {[%emt 0:00:41]} Be7 {[%emt 0:03:11]} 23. Ba3 {[%emt 0:02:11]} a5 {[%emt 0:01:18]} 24. Bxb4 {[%emt 0:06:06]} Bxb4 {[%emt 0:00:56]} 25. Qc2 {[%emt 0:00:02]} Nd7 {[%emt 0:05:11]} 26. Nd3 {[%emt 0:02:32]} Bc3 {[%emt 0:02:21]} 27. Ra2 {[%emt 0:00:13]} Nc5 {[%emt 0:00:17]} 28. Nxc5 {[%emt 0:04:02]} Qxc5 {[%emt 0:00:12]} 29. Bf3 {[%emt 0:00:14]} Bc6 {[%emt 0:03:47]} 30. Ne2 {[%emt 0:02:59]} Bb4 {[%emt 0:02:53]} 31. Nc1 {[%emt 0:00:07]} Bc3 {[%emt 0:01:24]} 32. Ne2 {[%emt 0:02:36]} Bb4 {[%emt 0:00:22]} 33. Nc1 {[%emt 0:00:31]} Bc3 34. Bd1 1/2-1/2

[Event "CZE-ch Open 2019"]
[Site "Ostrava"]
[Date "2019.04.30"]
[Round "4.27"]
[White "Belunek, Vladimir"]
[Black "Koubova, Anna Marie"]
[Result "1-0"]
[ECO "D83"]
[WhiteElo "2201"]
[BlackElo "2005"]
[Annotator "NA"]
[PlyCount "25"]
[EventDate "2019.04.27"]
[EventType "swiss"]
[EventCountry "CZE"]
[SourceTitle "playchess.com"]
[Source "ChessBase"]
[SourceQuality "1"]
[TimeControl "40/5400+30:1800+30"]

1. d4 {[%emt 0:02:39]} Nf6 {[%emt 0:00:00]} 2. c4 {[%emt 0:00:06]} g6 {[%emt 0:00:00]} 3. Nc3 {[%emt 0:00:14]} d5 {[%emt 0:00:00]} 4. Bf4 {[%emt 0:00:21]} Bg7 {[%emt 0:00:42]} 5. e3 {[%emt 0:00:34]} O-O {[%emt 0:00:33]} 6. Rc1 {[%emt 0:00:11]} Na6 {[%emt 0:05:50]} 7. Nf3 {[%emt 0:02:01]} c5 {[%emt 0:07:13]} 8. h3 {[%emt 0:11:15]} Qa5 {[%emt 0:03:28]} 9. Qb3 {[%emt 0:15:53]} Be6 {[%emt 0:18:34]} 10. Qb5 {[%emt 0:07:09]} Qxb5 {[%emt 0:14:06]} 11. cxb5 {[%emt 0:00:31]} Nb4 {[%emt 0:00:40]} 12. a3 {[%emt 0:02:01]} cxd4 {[%emt 0:04:40]} 13. exd4 {[%emt 0:01:49]} 1-0